Cogmind - Beta 10.2 *** ADVENTURER MODE // 2021.09.18 @ 16:52:02 Player: Departed Result: Destroyed by B-75 Beast with Heavy Plasma Cannon Performance ------------- Evolutions (4) 2000 Regions Visited (7) 1400 Robots Destroyed (141) 705 Value Destroyed (5551) 5551 Prototype IDs (5) 100 Alien Tech Used (0) 0 Bonus (555) 555 TOTAL SCORE: 10311 Bonus ------- High Alert Combat Kills 555 Cogmind --------- Core Integrity 0/850 Matter 300/300 Energy 99/100 System Corruption 0% Temperature Cool (12) Movement Core (100) Ox1 Location -6/Extension Parts ------- > --- POWER (2) -------- (None) > --- PROPULSION (3) --- (None) > --- UTILITY (7) ------ Visual Processing Unit Improved Signal Interpreter Advanced Terrain Scan Processor Targeting Computer > --- WEAPON (3) ------- Phasing Sabre > --- INVENTORY (4) ---- Light Fission Core Light Treads Gatling Laser Peak State ------------ > --- POWER ------------ Light Nuclear Core Light Angular Momentum Engine > --- PROPULSION ------- Medium Treads Aluminum Leg Carbon-fiber Leg > --- UTILITY ---------- Advanced Heat Sink Advanced Heat Sink Visual Processing Unit Improved Sensor Array Improved Signal Interpreter Long-range Terrain Scanner Advanced Terrain Scan Processor > --- WEAPON ----------- Heavy Neutron Cannon Heavy Neutron Cannon Gauss Cannon > --- INVENTORY -------- Lightning Gun Gatling Laser Autogun Heavy Machine Gun [Rating: 59] Favorites ----------- Power Reinforced Ion Engine Engine Reinforced Ion Engine Power Core Light Nuclear Core Propulsion Light Treads Treads Light Treads Leg Aluminum Leg Utility Visual Processing Unit Device Advanced Heat Sink Storage Small Storage Unit Processor Visual Processing Unit Protection Reactive Plating Weapon Heavy Neutron Cannon Energy Gun Gatling Laser Energy Cannon Heavy Neutron Cannon Ballistic Gun Gauss Rifle Ballistic Cannon Gauss Cannon Launcher Advanced EMP Blaster Special Weapon Plasma Cutter Slashing Weapon Phasing Sabre Build | -11 -10 -9 -8 -7 -7 -6 -6 ------- Run | Scr Mat Mat Mat Fac Sto Fac Ext Slots Evolved 8 | . . 2 2 2 . 2 . Power 1 | . . . . 1 . . . Propulsion 1 | . . . . . . 1 . Utility 5 | . . 2 1 1 . 1 . Weapon 1 | . . . 1 . . . . Parts Attached 140 | 6 7 12 26 16 17 27 29 Power 15 | 1 . 2 2 1 2 2 5 Engine 11 | 1 . 2 2 1 . 1 4 Core 4 | . . . . . 2 1 1 Reactor . | . . . . . . . . Propulsion 35 | 2 . . 8 3 4 6 12 Treads 13 | 2 . . 2 . . 3 6 Leg 22 | . . . 6 3 4 3 6 Wheel . | . . . . . . . . Hover . | . . . . . . . . Flight . | . . . . . . . . Utility 32 | 1 3 3 6 6 3 6 4 Device 19 | . 2 1 4 3 3 3 3 Storage 3 | 1 . 1 . . . 1 . Processor 7 | . . 1 1 2 . 2 1 Hackware . | . . . . . . . . Protection 3 | . 1 . 1 1 . . . Artifact . | . . . . . . . . Weapon 58 | 2 4 7 10 6 8 13 8 Energy Gun 19 | 1 2 3 2 3 3 2 3 Energy Cannon 6 | . . . 1 1 . 3 1 Ballistic Gun 13 | 1 . . 4 1 2 3 2 Ballistic Cannon 1 | . . . . . . 1 . Launcher 14 | . 2 2 2 1 3 4 . Special Weapon 2 | . . 2 . . . . . Impact Weapon . | . . . . . . . . Slashing Weapon 3 | . . . 1 . . . 2 Piercing Weapon . | . . . . . . . . Special Melee Weapon . | . . . . . . . . Unidentified Prototypes 3 | . . . 2 . . 1 . Parts Lost 43 | . . 2 3 1 7 7 23 Power 10 | . . . . 1 1 2 6 Propulsion 10 | . . . . . 2 2 6 Utility 6 | . . . . . 1 1 4 Weapon 17 | . . 2 3 . 3 2 7 Highest Loss Streak 10 | . . 2 1 1 4 3 10 Average Slot Usage (%) 93 | . 98 98 97 96 88 97 85 Engine 8 | . 14 11 9 11 7 3 7 Core 2 | . . . . . 2 7 3 Treads 9 | . 28 22 9 . . 1 11 Leg 7 | . . . 8 15 10 17 2 Device 18 | . 12 21 20 12 19 21 20 Storage 7 | . 14 12 9 7 7 9 . Processor 15 | . . 9 10 22 17 15 20 Energy Gun 7 | . 24 12 1 13 6 7 1 Energy Cannon 4 | . . . 3 . 1 2 12 Ballistic Gun 4 | . . . 10 7 10 3 1 Launcher 2 | . 3 2 5 . 2 2 . Special Weapon 1 | . . 6 3 . . . . Naked Turns . | . . . . . . . . Heaviest Build 52 | 10 13 19 38 46 38 52 49 Greatest Support 74 | 40 40 40 42 35 35 48 74 Greatest Overweight (x) 11 | . . . 1 1 11 2 2 Average Overweight (x) . | . . . . . 1 . . Largest Inventory Capacity 6 | 6 6 6 6 6 6 6 4 Average Capacity 5 | 5 6 6 6 6 6 5 4 Most Carried 6 | 2 6 6 6 6 6 6 4 Average Carried 4 | 1 5 5 5 5 5 5 3 Final Capacity 6 | 6 6 6 6 6 6 4 4 Final Carried 6 | 2 6 6 6 6 4 3 3 Class Distribution -------------------- 37% | Scavenger-Skirmisher 23% | Mutant 13% | Skirmisher 5% | Scavenger-Mutant 4% | Infiltrator-Skirmisher 3% | Gunner 3% | Scavenger-Tank 3% | Infiltrator-Mutant Dominant Class ---------------- Mutant | -10/Materials Mutant | -9/Materials Infiltrator-Skirmisher | -8/Materials Skirmisher | -7/Factory Scavenger-Skirmisher | -7/Storage Scavenger-Skirmisher | -6/Factory Scavenger-Skirmisher | -6/Extension Resources | -11 -10 -9 -8 -7 -7 -6 -6 ----------- Run | Scr Mat Mat Mat Fac Sto Fac Ext Matter Collected 2542 | 234 45 195 518 264 359 520 407 Remotely . | . . . . . . . . Salvage Created 6304 | . 146 468 1231 470 1100 1560 1329 Parts 287 | . 14 25 58 19 45 69 57 Haulers Intercepted 1 | . . . . . . 1 . Recyclers Shooed 4 | . . 1 . . 1 2 . Parts Field Recycled . | . . . . . . . . Retrieved Matter . | . . . . . . . . Parts Self-Destructed . | . . . . . . . . Prevented . | . . . . . . . . Kills | -11 -10 -9 -8 -7 -7 -6 -6 ------- Run | Scr Mat Mat Mat Fac Sto Fac Ext Combat Hostiles Destroyed 113 | . 5 13 23 8 21 22 21 Melee 4 | . . . . . . . 4 Guns 48 | . 1 8 13 4 11 6 5 Cannons 22 | . . . 3 1 1 7 10 AOE 38 | . 4 5 6 3 9 9 2 Classes Destroyed 13 | . 3 2 2 2 . 2 2 Worker 4 | . . . . 1 . 3 . Builder 2 | . . . . . . . 2 Hauler 1 | . . . . . . 1 . Recycler 8 | . . 1 2 . 1 3 1 Operator 2 | . . . . 1 . 1 . Watcher 11 | . 2 2 2 . 1 2 2 Swarmer 25 | . 3 7 . . 3 9 3 Grunt 56 | . 2 5 14 5 16 6 8 Brawler 2 | . . . 1 . . 1 . Sentry 22 | . . 1 6 3 2 5 5 Hunter 6 | . . . 2 . . . 4 Programmer 1 | . . . . . . 1 . Behemoth 1 | . . . . . . . 1 Best Kill Streak 10 | . 4 6 7 5 6 10 6 Combat Bots Only 7 | . 4 4 5 5 6 7 5 Max Kills in Single Turn 7 | . 3 3 3 3 3 7 2 Gunslinging . | . . . . . . . . Exploded 4 | . 3 3 2 3 3 4 2 Melee 1 | . . . . . . . 1 Uniques/NPCs Destroyed . | . . . . . . . . Combat | -11 -10 -9 -8 -7 -7 -6 -6 -------- Run | Scr Mat Mat Mat Fac Sto Fac Ext Damage Taken 6405 | . 33 284 835 398 1133 1161 2561 Core 1461 | . 9 12 125 64 386 211 654 Absorbed by Shields . | . . . . . . . . Core Remaining (%) 81 | 100 96 97 77 . 35 . . Volleys Fired 264 | . 9 33 50 16 45 46 65 Largest 3 | . 2 2 3 3 3 3 3 Hottest 310 | . 80 80 146 218 218 268 310 Shots Fired 601 | . 18 53 108 48 106 124 144 Gun 372 | . 16 50 64 40 94 64 44 Cannon 185 | . . . 23 3 4 55 100 Launcher 37 | . 2 3 14 5 8 5 . Special 7 | . . . 7 . . . . Kinetic 206 | . . . 54 19 56 58 19 Thermal 246 | . . 7 17 15 39 60 108 Explosive 9 | . 2 3 4 . . . . Electromagnetic 140 | . 16 43 33 14 11 6 17 Robot Hit Streak 51 | . 7 10 19 14 20 23 51 Robot Miss Streak 3 | . 3 1 3 1 2 2 1 Penetration Max 1 | . . . 1 . 1 1 . Secondary Targets . | . . . . . . . . Shots Hit Robots 480 | . 9 37 89 39 91 88 127 Core Hits 258 | . 8 21 51 26 51 50 51 Critical Hits 12 | . . . . . 1 5 6 Critical Kills 5 | . . . . . . 3 2 Critical Parts Destroyed 6 | . . . . . . 2 4 Melee Attacks 15 | . . . 1 . . . 14 Impact . | . . . . . . . . Slashing 15 | . . . 1 . . . 14 Piercing . | . . . . . . . . Sneak Attacks 2 | . . . 1 . . . 1 Combat Hostiles . | . . . . . . . . Follow-up Attacks . | . . . . . . . . Damage Inflicted 14448 | . 341 725 2579 1059 2259 3500 3985 Guns 5729 | . 186 458 974 697 1447 1089 878 Cannons 4093 | . . . 490 115 81 1155 2252 Explosions 3811 | . 155 267 944 247 731 1256 211 Melee 772 | . . . 128 . . . 644 Ramming . | . . . . . . . . Kinetic 3095 | . . . 855 269 693 926 352 Thermal 6752 | . . 63 462 399 887 2245 2696 Explosive 688 | . 155 267 233 33 . . . Electromagnetic 3141 | . 186 395 901 358 679 329 293 Impact . | . . . . . . . . Slashing 772 | . . . 128 . . . 644 Piercing . | . . . . . . . . Highest Corruption 2 | . . . 2 . . . . Average Corruption 2 | . . . 2 . . . . Corruption Purged . | . . . . . . . . Overload Shots . | . . . . . . . . Overflow Damage 196 | . . . 29 . 7 91 69 Projectiles 84 | . . . . . 6 22 56 Explosions 99 | . . . 29 . 1 69 . Melee 13 | . . . . . . . 13 Knockbacks 4 | . . . . . . 4 . Impact . | . . . . . . . . Kinetic 3 | . . . . . . 3 . Secondary 1 | . . . . . . 1 . Self-Inflicted Damage 307 | . . . 173 68 21 45 . Shots 11 | . . . 7 1 1 2 . Rammed . | . . . . . . . . Targets Rammed . | . . . . . . . . Kicked . | . . . . . . . . Crushed . | . . . . . . . . Highest Temperature 575 | . 84 . 92 410 575 302 430 Average Temperature 114 | . 28 . 34 139 161 99 119 Received Heat Transfer 2076 | . 18 111 333 168 456 375 615 Effects 18 | . . . . 2 14 . 2 Shutdowns 4 | . . . . . 3 . 1 Energy Bleed 2 | . . . . 2 . . . Interference 7 | . . . . . 7 . . Short Circuit 2 | . . . . . 1 . 1 Damage (minor) 1 | . . . . . 1 . . Damage (core) 2 | . . . . . 2 . . Siege Activations . | . . . . . . . . Robots Corrupted 1 | . . . 1 . . . . Combat Hostiles 1 | . . . 1 . . . . Parts Fried 13 | . 2 3 3 . 4 1 . Impact Corruptions . | . . . . . . . . Robots Melted . | . . . . . . . . Combat Hostiles . | . . . . . . . . Parts Melted 8 | . . . 2 1 3 1 1 Heat Transferred 8755 | . . 185 781 725 1825 2113 3126 Parts Sabotaged . | . . . . . . . . Parts Stolen . | . . . . . . . . Parts Stripped . | . . . . . . . . Power Chain Reactions 11 | . . . 3 . 4 3 1 Missiles Intercepted . | . . . . . . . . Alert | -11 -10 -9 -8 -7 -7 -6 -6 ------- Run | Scr Mat Mat Mat Fac Sto Fac Ext Peak Influence 742 | . 192 412 718 465 659 742 433 Initial 313 | . . 69 76 279 168 176 313 Average 333 | . 45 239 419 374 441 416 307 Maximum Alert Level 3 | . . 2 3 2 2 3 2 Low Security (%) 21 | 100 100 43 17 . 12 9 8 Level 1 47 | . . 33 21 73 20 44 85 Level 2 28 | . . 22 52 26 66 35 6 Level 3 3 | . . . 8 . . 11 . Level 4 . | . . . . . . . . Level 5 . | . . . . . . . . High Security . | . . . . . . . . Max Security . | . . . . . . . . Squads Dispatched 24 | . 1 1 5 1 9 5 2 Investigation 6 | . 1 . 1 1 2 . 1 Extermination 1 | . . . . . . 1 . Reinforcement 11 | . . 1 4 . 4 1 1 Assault . | . . . . . . . . Garrison 6 | . . . . . 3 3 . Intercept . | . . . . . . . . Construction Impeded 2 | . . . . . 1 . 1 Haulers Reinforced 1 | . . . . . 1 . . Stealth | -11 -10 -9 -8 -7 -7 -6 -6 --------- Run | Scr Mat Mat Mat Fac Sto Fac Ext Distress Signals 6 | . 1 2 1 . . . 2 Communications Jammed 12 | . . . 12 . . . . Distress Signals 11 | . . . 11 . . . . Times Spotted 153 | . 9 19 32 9 25 28 31 Peak Tracking Total 9 | . 3 6 5 3 5 4 9 Tactical Retreats 7 | . . . . . 1 2 4 Traps | -11 -10 -9 -8 -7 -7 -6 -6 ------- Run | Scr Mat Mat Mat Fac Sto Fac Ext Traps Triggered 5 | . 1 . 1 . 1 2 . Indirectly . | . . . . . . . . Trap Hack Attempts . | . . . . . . . . Triggered . | . . . . . . . . Disarmed . | . . . . . . . . Reprogrammed 1 | . . . . . 1 . . Reused . | . . . . . . . . Traps Extracted . | . . . . . . . . Installed . | . . . . . . . . Triggered 1 | . . . 1 . . . . Machines | -11 -10 -9 -8 -7 -7 -6 -6 ---------- Run | Scr Mat Mat Mat Fac Sto Fac Ext Machines Disabled 37 | . 1 1 5 5 7 18 . Max in Single Turn 14 | . 1 1 1 4 2 14 . Machines Sabotaged . | . . . . . . . . Garrisons Compromised . | . . . . . . . . Overloaded Fab Kills . | . . . . . . . . Fab Network Shutdowns . | . . . . . . . . Hacking | -11 -10 -9 -8 -7 -7 -6 -6 --------- Run | Scr Mat Mat Mat Fac Sto Fac Ext Machines Accessed 19 | . 1 . 3 5 3 3 4 Terminals 13 | . 1 . 1 3 2 2 4 Fabricators 2 | . . . . 1 . 1 . Repair Stations 1 | . . . 1 . . . . Recycling Units . | . . . . . . . . Scanalyzers 1 | . . . 1 . . . . Garrison Access 2 | . . . . 1 1 . . Total Hacks 39 | . 3 . 8 9 9 5 5 Successful 25 | . 3 . 6 5 4 4 3 Failed 14 | . . . 2 4 5 1 2 Catastrophic 1 | . . . . . . . 1 Database Lockouts . | . . . . . . . . Manual . | . . . . . . . . Terminals 25 | . 3 . 1 6 6 4 5 Fabricators 3 | . . . . 2 . 1 . Repair Stations 3 | . . . 3 . . . . Recycling Units . | . . . . . . . . Scanalyzers 4 | . . . 4 . . . . Garrison Access 4 | . . . . 1 3 . . Terminal Hacks 18 | . 3 . 1 4 4 3 3 Prototype ID Bank 1 | . . . . . . . 1 Open Door 3 | . . . . . . 1 2 Level Access Points 1 | . . . . . 1 . . Emergency Access Points 2 | . 1 . . 1 . . . Alert Level 3 | . 1 . . 2 . . . Unreport Threat 2 | . . . . . 1 1 . Locate Traps 1 | . . . . . 1 . . Reprogram Traps 1 | . . . . . 1 . . Maintenance Status 1 | . . . 1 . . . . Recall Reinforcements 1 | . . . . 1 . . . Zone Layout 2 | . 1 . . . . 1 . Fabricator Hacks 2 | . . . . 1 . 1 . Load Schematic 1 | . . . . . . 1 . Build 1 | . . . . 1 . . . Repair Station Hacks 1 | . . . 1 . . . . Scan Component 1 | . . . 1 . . . . Recycling Unit Hacks . | . . . . . . . . Scanalyzer 4 | . . . 4 . . . . Insert Component 2 | . . . 2 . . . . Analyze 2 | . . . 2 . . . . Garrison Access Hacks . | . . . . . . . . Unauthorized Hacks . | . . . . . . . . Terminals . | . . . . . . . . Fabricators . | . . . . . . . . Repair Stations . | . . . . . . . . Recycling Units . | . . . . . . . . Scanalyzers . | . . . . . . . . Garrison Access . | . . . . . . . . Data Cores Recovered 1 | . . . . 1 . . . Used 1 | . . . . 1 . . . Hacking Detections 14 | . . . 2 5 3 3 1 Full Trace Events 4 | . . . . 1 2 . 1 Feedback Events . | . . . . . . . . Feedback Blocked . | . . . . . . . . Robot Schematics Acquired . | . . . . . . . . Robots Built . | . . . . . . . . Matter . | . . . . . . . . Time . | . . . . . . . . Total Robot Build Rating . | . . . . . . . . Part Schematics Acquired 2 | . . . 2 . . . . Parts Built 2 | . . . . 2 . . . Matter 234 | . . . . 234 . . . Time 39 | . . . . 39 . . . Total Part Build Rating 14 | . . . . 14 . . . Parts Repaired . | . . . . . . . . Time . | . . . . . . . . Parts Recycled . | . . . . . . . . Recycled Matter . | . . . . . . . . Retrieved Matter . | . . . . . . . . Retrieved Components . | . . . . . . . . Parts Scanalyzed 2 | . . . 2 . . . . Part Schematics Acquired 2 | . . . 2 . . . . Parts Damaged . | . . . . . . . . Bothacking | -11 -10 -9 -8 -7 -7 -6 -6 ------------ Run | Scr Mat Mat Mat Fac Sto Fac Ext Used RIF Installer . | . . . . . . . . Robots Hacked . | . . . . . . . . Non-combat . | . . . . . . . . Combat . | . . . . . . . . Robot Hacks Applied . | . . . . . . . . Relay Couplers Released . | . . . . . . . . Robots Rewired . | . . . . . . . . Allies Hacked . | . . . . . . . . Hacks Repelled . | . . . . . . . . Allies | -11 -10 -9 -8 -7 -7 -6 -6 -------- Run | Scr Mat Mat Mat Fac Sto Fac Ext Total Allies 3 | . . . . . . . 3 Largest Group 2 | . . . . . . . 2 Highest-Rated Group 56 | . . . . . . . 56 Highest-Rated Ally 31 | . . . . . . . 31 Total Orders . | . . . . . . . . Ally Attacks 8 | . . . . . . . 8 Total Damage 177 | . . . . . . . 177 Kills . | . . . . . . . . Allies Corrupted . | . . . . . . . . Allies Melted . | . . . . . . . . Intel | -11 -10 -9 -8 -7 -7 -6 -6 ------- Run | Scr Mat Mat Mat Fac Sto Fac Ext Robot Analysis Total . | . . . . . . . . Derelict Logs Recovered . | . . . . . . . . Drone Launches . | . . . . . . . . Drone Recoveries . | . . . . . . . . Exploration | -11 -10 -9 -8 -7 -7 -6 -6 ------------- Run | Scr Mat Mat Mat Fac Sto Fac Ext Turns Passed 4787 | 70 391 456 793 682 451 790 1154 Spaces Moved 2271 | 41 195 219 364 383 157 394 518 Core 19 | 6 . . . . 5 . 8 Treads 1078 | 35 195 219 182 . . 39 408 Legs 1174 | . . . 182 383 152 355 102 Wheels . | . . . . . . . . Hover . | . . . . . . . . Flight . | . . . . . . . . Fastest Speed 50 | 50 160 160 130 125 125 120 100 Average Speed 155 | 143 160 160 156 144 165 151 159 Slowest Speed 600 | 160 160 160 160 155 600 180 180 Overloaded Moves . | . . . . . . . . Propulsion Burnouts . | . . . . . . . . Robots Hopped . | . . . . . . . . Cave-ins Triggered . | . . . . . . . . Exploration Rate (%) 29 | 4 41 32 35 16 45 15 50 Regions Visited 7 Branch Regions 2 Pre-discovered Areas . | . . . . . . . . Known Exits Taken 2 | . . . . . 1 1 . Unknown Exits Taken 5 | 1 1 1 1 1 . . . Scrap Searched . | . . . . . . . . Spaces Dug . | . . . . . . . . Terrain Destroyed 215 | . 16 27 39 19 33 65 16 Melee . | . . . . . . . . Projectile 21 | . . . . 2 2 8 9 AOE 194 | . 16 27 39 17 31 57 7 Terrain Rammed . | . . . . . . . . Walls Destroyed . | . . . . . . . . Machines Disabled . | . . . . . . . . Actions | -11 -10 -9 -8 -7 -7 -6 -6 --------- Run | Scr Mat Mat Mat Fac Sto Fac Ext Total 2965 | 50 255 268 489 473 248 485 697 Wait 153 | . 33 . 8 43 19 5 45 Move 2264 | 40 194 218 363 382 156 393 518 Hop . | . . . . . . . . Pick Up 59 | 4 8 4 15 6 4 5 13 Fast Attach 39 | 4 1 1 9 3 3 6 12 Attach 41 | 2 1 4 8 3 7 5 11 Detach 1 | . . . 1 . . . . Swap 60 | . 5 7 9 10 7 16 6 Drop 64 | . 4 1 25 10 2 9 13 Fire 264 | . 9 33 50 16 45 46 65 Melee 15 | . . . 1 . . . 14 Ram . | . . . . . . . . Kick . | . . . . . . . . Crush . | . . . . . . . . Escape Stasis 5 | . . . . . 5 . . Rewire . | . . . . . . . . Trap . | . . . . . . . . Miscellaneous . | . . . . . . . . Route ------- -11/Scrapyard -10/Materials (discovered 2 exits: [*Mat] / [*Min]) -9/Materials -8/Materials -7/Factory -7/Storage -6/Factory -6/Extension History --------- Turn | Location | Event 5 | -11/Scrapyard | Discovered new exit (range 14) 71 | -11/Scrapyard | Entered Materials 222 | -10/Materials | Discovered new exit (range 16) 296 | -10/Materials | Discovered new exit (range 16) 300 | -10/Materials | Build established: Mutant 462 | -10/Materials | Entered another Materials area 462 | -9/Materials | Evolved 2 slots: Utility x2 835 | -9/Materials | Discovered new exit (range 17) 918 | -9/Materials | Entered another Materials area 918 | -8/Materials | Evolved 2 slots: Utility x1, Weapon x1 1701 | -8/Materials | Discovered new exit (range 8) 1711 | -8/Materials | Entered Factory 1711 | -7/Factory | Evolved 2 slots: Power x1, Utility x1 2310 | -7/Factory | Build established: Skirmisher 2334 | -7/Factory | Discovered new exit (range 15) 2343 | -7/Factory | Fabricated Hvy. Neutron Cannon (x2) 2393 | -7/Factory | Entered Storage 2570 | -7/Storage | Core integrity fell below 50% 2607 | -7/Storage | Garrison activated, responded to threat 2643 | -7/Storage | Lost 3 parts (1p1n1w) 2703 | -7/Storage | Identified exit to Factory 2824 | -7/Storage | Lost 4 parts (1n1u2w) 2844 | -7/Storage | Entered Factory 2844 | -6/Factory | Evolved 2 slots: Propulsion x1, Utility x1 2897 | -6/Factory | Build established: Scavenger-Skirmisher 3276 | -6/Factory | Destroyed 7 combat bots 3458 | -6/Factory | Garrison activated, responded to threat 3505 | -6/Factory | Lost 3 parts (1n1u1w) 3508 | -6/Factory | Garrison activated, responded to threat 3609 | -6/Factory | Discovered new exit (range 6) 3632 | -6/Factory | Identified exit to Extension 3634 | -6/Factory | Entered Extension 3837 | -6/Extension | Spotted B-75 Beast 4134 | -6/Extension | Disrupted transfer network 4234 | -6/Extension | Rescued a captive Derelict 4387 | -6/Extension | Lost 5 parts (2p1u2w) 4518 | -6/Extension | Core integrity fell below 50% 4551 | -6/Extension | Lost 7 parts (2p2n1u2w) 4621 | -6/Extension | Rescued a captive Derelict 4623 | -6/Extension | Rescued a captive Derelict 4690 | -6/Extension | Destroyed B-75 Beast 4696 | -6/Extension | Spotted B-75 Beast 4743 | -6/Extension | Core integrity fell below 20% 4764 | -6/Extension | Lost 10 parts (2p3n2u3w) 4788 | -6/Extension | Destroyed by B-75 Beast with Heavy Plasma Cannon Last Messages --------------- 04696_ U-05 Engineer builds a Wall. 04699_ Acquired 27 matter. 04704_ Acquired Carbon-fiber Leg. 04705_ Adv. Heat Sink destroyed. 04708_ Hvy. Neutron Cannon destroyed. 04708_ Acquired Lgt. Fission Core. 04710_ Acquired Flexi-carbon Leg. 04711_ U-05 Engineer builds a Wall. 04719_ Gauss Rifle destroyed. 04724_ Flexi-carbon Leg destroyed. 04727_ Critical hit. 04727_ Adv. Heat Sink destroyed. 04730_ Com. Ion Cannon destroyed. 04733_ Carbon-fiber Leg destroyed. 04773_ Y-54 Guardian Lgt. Treads severed. 04778_ Flexi-carbon Leg destroyed. 04778_ Y-54 Guardian destroyed. 04778_ U-05 Engineer builds a Wall. 04785_ Knocked back. 04786_ U-05 Engineer builds a Wall. Map ----- +----------------------------------------------------+ | ############ ##### +%=!%%*# ######?#!#?## | | ###### ### ########+#######!*% # ####?###%#??# | | T + / ###= [ %%# #####?##!#?## | | ###### ######## ### %= +% ###?# #?#? | | ################# ###=[% #### #####[##?? | | ################# ! = ###!! = #### ###?#%###? | | ####################################### ##?##[#?## | | ########################?############# ####=#?#? | | ###################################?## ####%##?? | | ###################################### ####!#??# | | ######################?################ ##### #??? | | ####################################### ##### #?## | | ####################################### ##?# | | ###############################?####?######## ###? | | ######################################?###### #?#? | | ###############################?############# #??# | | ############################################# ##?# | | #############################?#########?#####=### | | ###########?#############################?#"=!% | | ###################]]]######?#######?######![%![ | | ############?# #####################=|!! ! | | ############## ####!=!"################# #*%==% | | ##############+#####+###################### ! = | | !%[ u u ! | | u u BB | | @BB | | | | % R tk t R kR R k t | | ########################################### *%! | | ####?######################?#####?######### = | | ####################?###############?#?#### | | ############?######################?##?##?# | | ##########?#?################?####?######?# | | #################################??#####?#######T# | | #######################?###########?####??######## | | ?###################?###?##?##?#######?#??#?#????? | | | | | | | | | | | | | | | | | | | | | | | | | | | | | +----------------------------------------------------+ Best States ------------- Heat Dissipation 75 Energy Generation 32 Energy Capacity 525 Matter Stores 300 Matter Capacity 300 Sight Range 18 Robot Scan Range 16 Terrain Scan Range 24 Terrain Scan Density 310 ECM Strength 2 Jamming Range 8 Armor Coverage 150 Resistance: KI 40 Resistance: TH 20 Resistance: EX 20 Resistance: EM 20 Resistance: I 20 Resistance: S 20 Resistance: P 20 Weapon Shielding 33 Evasion (%) 40 Targeting Accuracy 5 Core Analysis 6 Recoil Reduction 3 Offensive Hacking 10 Item Schematics ----------------- Rnf. Ion Engine | -8/Materials | Scanalyzed Adv. EMP Blaster | -8/Materials | Scanalyzed Robot Schematics ------------------ None Fabricated ------------ Hvy. Neutron Cannon | x2 | -7/Factory | Preloaded Alien Tech Used ----------------- None Achievements -------------- Dynamic Key No Signal Omniscient Cartographer Total Silence Challenges ------------ None Game ------ Seed GravitonLightPropulsion Manual? 0 Play Time 01:15:58 Cumulative 12.7 hours Start 2021.09.18 @ 15:36:53 End 2021.09.18 @ 16:52:02 Sessions 1 Manual Loads 0 Difficulty Adventurer Special Mode None Game No. 19 Rogue 0 Adventurer 19 Explorer 0 Win Type - Total 0 Types 0/0/0/0/0/0/0/0/0 Lore% 9 Gallery% 23 Achievement% 16 Wizard Run 0 Options --------- ASCII 0 Keyboard 0 Movement Mouse Keybinds 0 Fullscreen 1 Font 18/TerminusBold Map View 76x50 Tactical HUD 1 Map Filters NONE Filters NONE Steam 1 RUN: 67108735-137a-4816-888c-5f2e39397226